lending/lending_fUSD_20240509
["ID","MTS","AMOUNT","RATE_DAILY","PERIOD"]
[326705877,1715272240742,-1015.85079388,0.00028899,2]
[326705901,1715272241056,-606.7944,0.00028899,2]
[326705903,1715272241068,-359.38098,0.00028899,2]
[326705906,1715272241080,-340.0090999,0.00028899,2]
[326705910,1715272241094,-953.445,0.00028899,2]
[326705944,1715272241567,-631.17512,0.00028899,2]
[326705946,1715272241579,-657.53440738,0.00028899,2]
[326705948,1715272241592,-627.19,0.00028899,2]
[326705950,1715272241605,-2930.325011,0.00028899,2]
[326705952,1715272241617,-967.557304,0.00028899,2]
[326705953,1715272241629,-299.8197336,0.00028899,2]
[326705954,1715272241642,-157.88828195,0.00028899,2]
[326705955,1715272241652,-9680.52,0.00028996,2]
[326705956,1715272241662,-200.00005184,0.00029,2]
[326705957,1715272241678,-42669.03155532,0.00029,2]
[326705958,1715272241688,-1046.1,0.00029178,2]
[326705959,1715272241699,-420.08,0.00029178,2]
[326705960,1715272241711,-300.0,0.00029178,2]
[326705961,1715272241721,-150.0,0.00029178,2]
[326705962,1715272241730,-150.0,0.00029178,2]
[326705963,1715272241740,-420.08,0.00029178,2]
[326705964,1715272241750,-420.08,0.00029178,2]
[326705965,1715272241760,-150.0,0.00029178,2]
[326705966,1715272241770,-420.08,0.00029178,2]
[326705967,1715272241780,-150.0,0.00029178,2]
[326705968,1715272241790,-420.08,0.00029178,2]
[326705969,1715272241800,-150.0,0.00029178,2]
[326705970,1715272241810,-420.08,0.00029178,2]
[326705971,1715272241820,-150.0,0.00029178,2]
[326705972,1715272241829,-420.08,0.00029178,2]
[326705973,1715272241839,-150.0,0.00029178,2]
[326705974,1715272241849,-420.08,0.00029178,2]
[326705975,1715272241859,-150.0,0.00029178,2]
[326705976,1715272241869,-418.91,0.00029178,2]
[326705977,1715272241879,-150.0,0.00029178,2]
[326705978,1715272241889,-151.0,0.00029225,2]
[326705979,1715272241899,-1110.94798129,0.000294,2]
[326705980,1715272241908,-150.0,0.000294,2]
[326705981,1715272241918,-155.21230023,0.00029401,2]
[326705982,1715272241927,-152.0,0.00029554,3]
[326705983,1715272241937,-150.0,0.0002956,2]
[326705984,1715272241947,-200.0,0.00029759,2]
[326705985,1715272241958,-1000.0,0.00029759,10]
[326705986,1715272241968,-1578.47381333,0.0002989,2]
[326705987,1715272241977,-1578.47381331,0.00029891,2]
[326705988,1715272241986,-1578.47381331,0.00029893,2]
[326705989,1715272241997,-1578.47381331,0.00029894,2]
[326705990,1715272242006,-1578.47381331,0.00029896,2]
[326705991,1715272242016,-1578.47381331,0.00029897,2]
[326705992,1715272242026,-1578.47381331,0.00029899,2]
[326705993,1715272242035,-7500.0,0.000299,2]
[326705994,1715272242045,-10000.0,0.000299,2]
[326705995,1715272242054,-177.66173643,0.000299,120]
[326705996,1715272242064,-150.58688153,0.000299,2]
[326705997,1715272242074,-846.85125664,0.000299,7]
[326705998,1715272242083,-846.85125664,0.000299,7]
[326705999,1715272242093,-846.85125664,0.000299,7]
[326706000,1715272242102,-846.85125664,0.000299,7]
[326706001,1715272242112,-846.85125664,0.000299,7]
[326706002,1715272242121,-846.85125664,0.000299,7]
[326706003,1715272242131,-846.85125664,0.000299,7]
[326706004,1715272242140,-846.85125664,0.000299,7]
[326706005,1715272242149,-846.85125664,0.000299,7]
[326706006,1715272242159,-846.85125664,0.000299,7]
[326706007,1715272242168,-846.85125664,0.000299,7]
[326706008,1715272242181,-846.85125664,0.000299,7]
[326706009,1715272242191,-846.85125664,0.000299,7]
[326706010,1715272242200,-846.85125664,0.000299,7]
[326706011,1715272242213,-846.85125664,0.000299,7]
[326706012,1715272242222,-846.85125664,0.000299,7]
[326706013,1715272242231,-846.85125664,0.000299,7]
[326706014,1715272242240,-846.85125664,0.000299,7]
[326706015,1715272242251,-846.85125664,0.000299,7]
[326706016,1715272242261,-847.35,0.000299,7]
[326706017,1715272242270,-395.86492673,0.000299,2]
[326706018,1715272242280,-260.34832335,0.000299,7]
[326706019,1715272242289,-260.34832335,0.000299,7]
[326706020,1715272242300,-260.34832335,0.000299,7]
[326706021,1715272242314,-260.34832335,0.000299,7]
[326706022,1715272242323,-260.34832335,0.000299,7]
[326706023,1715272242332,-260.34832335,0.000299,7]
[326706024,1715272242342,-260.34832335,0.000299,7]
[326706025,1715272242352,-260.34832335,0.000299,7]
[326706026,1715272242362,-260.34832335,0.000299,7]
[326706027,1715272242371,-260.34832335,0.000299,7]
[326706028,1715272242383,-260.34832335,0.000299,7]
[326706029,1715272242392,-260.34832335,0.000299,7]
[326706030,1715272242401,-1578.47381331,0.000299,2]
[326706031,1715272242411,-260.34832335,0.000299,7]
[326706032,1715272242420,-260.34832335,0.000299,7]
[326706033,1715272242429,-260.34832335,0.000299,7]
[326706034,1715272242439,-260.34832335,0.000299,7]
[326706035,1715272242448,-260.34832335,0.000299,7]
[326706036,1715272242458,-260.34832335,0.000299,7]
[326706037,1715272242467,-251.12298482,0.000299,2]
[326706038,1715272242479,-260.34832335,0.000299,7]
[326706039,1715272242488,-260.84,0.000299,7]
[326706040,1715272242498,-156.83021056,0.000299,7]
[326706041,1715272242507,-156.83021056,0.000299,7]
[326706042,1715272242516,-156.83021056,0.000299,7]
[326706043,1715272242526,-156.83021056,0.000299,7]
[326706044,1715272242536,-156.83021056,0.000299,7]
[326706045,1715272242547,-156.83021056,0.000299,7]
[326706046,1715272242556,-156.83021056,0.000299,7]
[326706047,1715272242566,-157.33,0.000299,7]
[326706048,1715272242575,-320.91429529,0.000299,7]
[326706049,1715272242584,-320.91429529,0.000299,7]
[326706050,1715272242594,-320.91429529,0.000299,7]
[326706051,1715272242604,-320.91429529,0.000299,7]
[326706053,1715272242614,-4691.79458904,0.000299,2]
[326706054,1715272242624,-320.91429529,0.000299,7]
[326706055,1715272242633,-320.91429529,0.000299,7]
[326706056,1715272242644,-320.91429529,0.000299,7]
[326706057,1715272242653,-320.91429529,0.000299,7]
[326706058,1715272242663,-320.91429529,0.000299,7]
[326706059,1715272242673,-320.91429529,0.000299,7]
[326706060,1715272242683,-320.91429529,0.000299,7]
[326706061,1715272242693,-320.91429529,0.000299,7]
[326706062,1715272242704,-320.91429529,0.000299,7]
[326706063,1715272242714,-320.91429529,0.000299,7]
[326706064,1715272242724,-320.91429529,0.000299,7]
[326706065,1715272242734,-320.91429529,0.000299,7]
[326706066,1715272242744,-320.91429529,0.000299,7]
[326706067,1715272242754,-320.91429529,0.000299,7]
[326706068,1715272242766,-320.91429529,0.000299,7]
[326706069,1715272242776,-321.41,0.000299,7]
[326706070,1715272242785,-150.05995938,0.000299,2]
[326706071,1715272242795,-151.0,0.00029948,2]
[326706072,1715272242805,-4725.11809052,0.00029971,2]
[326706073,1715272242814,-151.29,0.0002999,2]
[326706074,1715272242823,-151.29,0.0002999,2]
[326706075,1715272242832,-151.29,0.0002999,2]
[326706076,1715272242842,-151.29,0.0002999,2]
[326706077,1715272242852,-151.29,0.0002999,2]
[326706078,1715272242861,-151.29,0.0002999,2]
[326706079,1715272242870,-151.29,0.0002999,2]
[326706080,1715272242879,-151.29,0.0002999,2]
[326706081,1715272242888,-151.29,0.0002999,2]
[326706082,1715272242898,-151.29,0.0002999,2]
[326706083,1715272242907,-151.29,0.0002999,2]
[326706084,1715272242917,-151.29,0.0002999,2]
[326706085,1715272242926,-151.29,0.0002999,2]
[326706086,1715272242936,-151.29,0.0002999,2]
[326706087,1715272242946,-151.29,0.0002999,2]
[326706088,1715272242957,-151.29,0.0002999,2]
[326706089,1715272242967,-151.29,0.0002999,2]
[326706090,1715272242976,-151.29,0.0002999,2]
[326706091,1715272242988,-151.29,0.0002999,2]
[326706092,1715272242998,-151.29,0.0002999,2]
[326706093,1715272243007,-151.29,0.0002999,2]
[326706094,1715272243018,-151.29,0.0002999,2]
[326706095,1715272243027,-151.29,0.0002999,2]
[326706096,1715272243037,-151.29,0.0002999,2]
[326706097,1715272243047,-151.29,0.0002999,2]
[326706098,1715272243057,-151.29,0.0002999,2]
[326706099,1715272243066,-1898.69382015,0.00029998,2]
[326706100,1715272243076,-515.6795376,0.00029998,2]
[326706101,1715272243085,-503.85224682,0.00029998,2]
[326706102,1715272243095,-320.31063503,0.00029998,2]
[326706103,1715272243105,-256.93973791,0.00029998,2]
[326706104,1715272243116,-155.0,0.00029998,2]
[326706105,1715272243126,-155.0,0.00029998,2]
[326706106,1715272243136,-155.30871402,0.00029998,2]
[326706107,1715272243147,-5084.66083756,0.00029998,2]
[326706108,1715272243156,-487.8595397,0.00029998,2]
[326706109,1715272243165,-206.19816627,0.00029998,2]
[326706110,1715272243175,-157.93501554,0.00029998,2]
[326706111,1715272243186,-163.91951958,0.00029998,2]
[326706112,1715272243196,-266.38602155,0.00029998,2]
[326706113,1715272243205,-255.64300283,0.00029998,2]
[326706114,1715272243215,-158.24340433,0.00029998,2]
[326706115,1715272243234,-210.10375186,0.00029998,2]
[326706116,1715272243245,-156.84310014,0.00029998,2]
[326706117,1715272243254,-392.55289161,0.00029998,2]
[326706118,1715272243264,-155.5240566,0.00029998,2]
[326706119,1715272243273,-472.08870942,0.00029998,2]
[326706120,1715272243283,-161.21528224,0.00029998,2]
[326706121,1715272243292,-308.80368967,0.00029998,2]
[326706123,1715272243303,-501.7340345,0.00029998,2]
[326706125,1715272243316,-305.08754642,0.00029998,2]
[326706128,1715272243325,-1352.26248503,0.00029998,2]
[326706131,1715272243335,-299.93548575,0.00029998,2]
[326706133,1715272243346,-4079.99947356,0.00029998,2]
[326706136,1715272243356,-37981.13828103,0.00029999,2]
[326706139,1715272243365,-1230.44713197,0.00029999,2]
[326706141,1715272243375,-624.25087452,0.00029999,2]
[326706143,1715272243386,-682.42533,0.00029999,2]
[326706145,1715272243396,-327.0,0.0003,5]
[326706146,1715272243406,-335.7738238,0.0003,7]
[326706149,1715272243416,-411072.32922189,0.0003,5]
[326706152,1715272243425,-2096506.2461874,0.0003,5]
[326706167,1715272243954,-547465.3975231,0.0003,5]
[326706168,1715272244325,-4962.79668519,0.00016427,2]
[326706169,1715272244335,-12944.92786279,0.0003,5]
[326706170,1715272244347,-357.69482547,0.0003,5]
[326706171,1715272244359,-1567.975,0.0003,5]
[326706172,1715272244371,-12156.70712762,0.0003,5]
[326706173,1715272244384,-1515.95314564,0.0003,5]
[326706174,1715272244397,-856.79557589,0.0003,5]
[326706175,1715272244408,-392.29490377,0.0003,5]
[326706176,1715272244420,-348.04079335,0.0003,5]
[326706178,1715272244676,-288.40150093,0.00028898,7]
[326706181,1715272244688,-1413.13549049,0.00028898,7]
[326706183,1715272244698,-194.46900176,0.00028898,2]
[326706187,1715272244709,-2987147.3808204,0.0003,5]
[326706242,1715272246121,-242.94197057,0.00028897,2]
[326706245,1715272246131,-155.0,0.00028898,2]
[326706248,1715272246139,-26329.12091924,0.0003,5]
[326706251,1715272246151,-627.19,0.0003,5]
[326706254,1715272246162,-1514.78932801,0.0003,5]
[326706257,1715272246173,-350.85670494,0.0003,5]
[326706290,1715272246519,-450.06598,0.0003,5]
[326706301,1715272256034,944.52008139,0.00011607,2]
[326706302,1715272280016,604.90567792,0.00011607,2]
[326706303,1715272280041,339.61440347,0.00011607,2]
[326706304,1715272295474,3660.38559653,0.00011607,2]
[326706305,1715272295502,2799.46840609,0.00011607,2]
[326706306,1715272296056,944.52008139,0.00011607,2]
[326706307,1715272316016,256.01151252,0.00011607,2]
[326706308,1715272316040,688.50856887,0.00011607,2]
[326706309,1715272336026,607.73922109,0.00011607,2]
[326706312,1715273194247,343.71792866,0.00011586,2]
[326706313,1715273199212,343.71792866,0.00011587,2]
[326706314,1715273204202,343.71792866,0.00011587,2]
[326706315,1715273206916,298.47108253,0.00011607,2]
[326706358,1715273432621,-155.0,0.00011674,2]
[326706360,1715273432631,-1296.3829768,0.00011675,2]
[326706362,1715273432645,-524.99904865,0.00011676,2]
[326706364,1715273432654,-401.30921672,0.00011676,2]
[326706366,1715273432664,-87.0767056,0.00011688,2]
[326706368,1715273432675,-62.9232944,0.00011688,2]
[326706370,1715273432686,-2416.469174,0.00012452,2]
[326706372,1715273432695,-18560.0,0.0001258,2]
[326706373,1715273432704,-197.68092387,0.000129,2]
[326706374,1715273432714,-167.4153232,0.000129,2]
[326706375,1715273432724,-395.86492673,0.000129,2]
[326706376,1715273432734,-536.33890108,0.000129,2]
[326706377,1715273432743,-1180.0328,0.000129,2]
[326706378,1715273432753,-196.04475242,0.000129,2]
[326706379,1715273432763,-150.0,0.00012959,2]
[326706380,1715273432772,-499.99,0.0001299,2]
[326706381,1715273432782,-151.0,0.0001299,2]
[326706382,1715273432792,-151.0,0.0001299,2]
[326706383,1715273432801,-151.0,0.0001299,2]
[326706384,1715273432811,-151.0,0.0001299,2]
[326706385,1715273432820,-151.0,0.0001299,2]
[326706386,1715273432830,-151.0,0.0001299,2]
[326706387,1715273432840,-151.0,0.0001299,2]
[326706388,1715273432850,-186.19,0.0001299,2]
[326706389,1715273432859,-186.19,0.0001299,2]
[326706390,1715273432868,-186.19,0.0001299,2]
[326706391,1715273432877,-186.19,0.0001299,2]
[326706392,1715273432887,-540.69,0.00012998,2]
[326706393,1715273432896,-969.69720886,0.00012998,2]
[326706394,1715273432905,-155.41401368,0.00012998,2]
[326706395,1715273432915,-156.95518331,0.00012998,2]
[326706396,1715273432925,-155.0,0.00012998,2]
[326706397,1715273432934,-684.85937217,0.00012998,2]
[326706398,1715273432944,-186.12897839,0.00012998,2]
[326706399,1715273432955,-1340.43061439,0.00012998,2]
[326706400,1715273432964,-293.17715996,0.00012998,2]
[326706401,1715273432974,-2217.73701039,0.00012998,2]
[326706402,1715273432983,-326.51563459,0.00012998,2]
[326706403,1715273432992,-1993.85,0.00012998,2]
[326706404,1715273433002,-341.47,0.00012998,2]
[326706405,1715273433012,-458.87,0.00012998,2]
[326706406,1715273433021,-150.99,0.00012998,2]
[326706407,1715273433031,-305.64014606,0.00012998,2]
[326706408,1715273433041,-616.8,0.00012998,2]
[326706409,1715273433051,-303.0,0.00012998,2]
[326706410,1715273433061,-365.88429841,0.00012999,2]
[326706411,1715273433070,-4490.91142498,0.00012999,2]
[326706412,1715273433079,-1708126.60175787,0.00013,2]
[326706413,1715273433091,-12076.0,0.00013,2]
[326706414,1715273433102,-625.25,0.00013,2]
[326706415,1715273433114,-3016.71008,0.00013,2]
[326706416,1715273433126,-4666.6,0.00013,2]
[326706417,1715273433139,-1712.57125797,0.00013,2]
[326706465,1715273441596,-648.70118642,0.00011674,2]
[326706466,1715273441608,-272.32466048,0.00011674,2]
[326706467,1715273441620,-493.68166636,0.00011674,2]
[326706468,1715273441632,-3322.91918874,0.00011674,2]
[326706469,1715273441647,-409.78233695,0.00012,2]
[326706470,1715273441657,-2766868.93430259,0.00013,2]
[326706471,1715273441667,-313.09483874,0.00013,2]
[326706472,1715273441678,-174.76024922,0.00013597,2]
[326706473,1715273441688,-196.71913629,0.00013597,2]
[326706474,1715273441700,-299.99,0.00014297,2]
[326706475,1715273441710,-1042.23614951,0.00015,2]
[326706476,1715273441719,-157.05,0.00015256,2]
[326706477,1715273441730,-157.05,0.00015333,2]
[326706478,1715273441740,-226.82,0.00015721,2]
[326706479,1715273441750,-200.0,0.00015751,2]
[326706480,1715273441760,-250.0,0.00015936,2]
[326706481,1715273441770,-239.05,0.00016695,2]
[326706482,1715273441779,-6917.16,0.00017069,2]
[326706483,1715273441789,-371.32375001,0.0001788,2]
[326706484,1715273441799,-371.32374996,0.0001788,2]
[326706485,1715273441808,-371.32374996,0.0001788,2]
[326706486,1715273441818,-239.05,0.00018782,2]
[326706487,1715273441828,-371.32374996,0.00018893,2]
[326706488,1715273441837,-156.84,0.00019178,2]
[326706489,1715273441847,-178.88,0.00019178,2]
[326706490,1715273441857,-164.33,0.000195,2]
[326706491,1715273441867,-150.58688153,0.000199,2]
[326706492,1715273441877,-150.58688153,0.000199,2]
[326706493,1715273441888,-1000.0,0.0002,2]
[326706494,1715273441898,-239.05,0.00020868,2]
[326706495,1715273441907,-371.32374996,0.00020891,2]
[326706496,1715273441917,-155.87234985,0.00021245,2]
[326706497,1715273441926,-151.54,0.00021848,2]
[326706498,1715273441936,-167.4153232,0.0002189,2]
[326706499,1715273441945,-536.33890107,0.0002189,2]
[326706500,1715273441956,-250.0,0.00021918,2]
[326706501,1715273441965,-250.0,0.00022125,2]
[326706502,1715273441975,-295.65,0.00022153,2]
[326706503,1715273441984,-179.49278845,0.00022224,2]
[326706504,1715273441993,-200.0,0.00022318,2]
[326706505,1715273442005,-150.58688153,0.00022356,2]
[326706506,1715273442014,-150.0,0.00022416,2]
[326706507,1715273442024,-23900.0,0.00022416,2]
[326706508,1715273442034,-371.32374996,0.00022889,2]
[326706509,1715273442044,-239.05,0.00022955,2]
[326706510,1715273442056,-1000.0,0.00023,2]
[326706511,1715273442066,-193.374,0.00024553,2]
[326706512,1715273442076,-371.32374996,0.00024887,2]
[326706513,1715273442086,-295.65,0.00024922,2]
[326706514,1715273442096,-17708.68633321,0.00025,2]
[326706515,1715273442106,-155.0,0.00025,2]
[326706516,1715273442115,-1000.0,0.00025,3]
[326706517,1715273442127,-239.05,0.00025042,2]
[326706518,1715273442136,-156.84,0.00025379,2]
[326706519,1715273442146,-179.49278845,0.00026369,2]
[326706520,1715273442155,-371.32374996,0.00026884,2]
[326706521,1715273442164,-226.82,0.00026953,2]
[326706522,1715273442174,-155.0,0.00027,2]
[326706523,1715273442182,-1000.0,0.00027,3]
[326706524,1715273442192,-150.58688153,0.00027085,2]
[326706525,1715273442202,-150.0,0.00027397,2]
[326706526,1715273442212,-295.65,0.00027691,2]
[326706527,1715273442221,-183.72,0.00027943,120]
[326706528,1715273442230,-150.0,0.00028118,2]
[326706529,1715273442239,-151.0,0.0002869,2]
[326706530,1715273442250,-291463.0657994,0.000287,3]
[326706531,1715273442261,-300.0,0.00028799,2]
[326706532,1715273442270,-150.0,0.00028839,2]
[326706533,1715273442280,-371.32374996,0.00028882,2]
[326706534,1715273442290,-9678.03,0.000289,2]
[326706535,1715273442299,-1000.0,0.00028999,2]
[326706536,1715273442310,-234214.56800159,0.00029,2]
[326706537,1715273442320,-200.00005184,0.00029,2]
[326706538,1715273442330,-152.14,0.00029,2]
[326706539,1715273442339,-151.0,0.00029549,2]
[326706540,1715273442349,-72044.52722931,0.0002955,2]
[326706541,1715273442358,-16518.96844467,0.00029559,30]
[326706542,1715273442370,-44021.0,0.00029559,4]
[326706543,1715273442379,-150.0,0.0002956,2]
[326706544,1715273442388,-568.68778,0.000297,2]
[326706545,1715273442397,-327.125282,0.00029759,2]
[326706546,1715273442407,-1000.0,0.00029759,10]
[326706547,1715273442417,-164.33,0.000298,2]
[326706548,1715273442426,-275902.19110143,0.000298,8]
[326706549,1715273442598,-153.89614998,0.0002985,2]
[326706550,1715273442608,-242.0,0.0002986,5]
[326706551,1715273442618,-53298.7396,0.00029899,2]
[326706552,1715273442627,-172.1132714,0.000299,2]
[326706553,1715273442637,-10000.0,0.000299,2]
[326706554,1715273442651,-929.19205717,0.000299,2]
[326706555,1715273442661,-677.47601788,0.000299,7]
[326706556,1715273442671,-677.47601788,0.000299,7]
[326706557,1715273442681,-677.47601788,0.000299,7]
[326706558,1715273442690,-677.47601788,0.000299,7]
[326706559,1715273442700,-677.47601788,0.000299,7]
[326706560,1715273442709,-677.47601788,0.000299,7]
[326706561,1715273442719,-677.47601788,0.000299,7]
[326706562,1715273442729,-677.47601788,0.000299,7]
[326706563,1715273442738,-677.47601788,0.000299,7]
[326706564,1715273442747,-677.47601788,0.000299,7]
[326706565,1715273442757,-677.47601788,0.000299,7]
[326706566,1715273442766,-677.47601788,0.000299,7]
[326706567,1715273442776,-677.47601788,0.000299,7]
[326706568,1715273442785,-677.47601788,0.000299,7]
[326706569,1715273442794,-677.47601788,0.000299,7]
[326706570,1715273442804,-677.47601788,0.000299,7]
[326706571,1715273442813,-677.47601788,0.000299,7]
[326706572,1715273442823,-677.47601788,0.000299,7]
[326706573,1715273442832,-677.47601788,0.000299,7]
[326706574,1715273442841,-677.97,0.000299,7]
[326706575,1715273442850,-208.27374191,0.000299,7]
[326706576,1715273442860,-208.27374191,0.000299,7]
[326706577,1715273442870,-208.27374191,0.000299,7]
[326706578,1715273442879,-208.27374191,0.000299,7]
[326706579,1715273442889,-208.27374191,0.000299,7]
[326706580,1715273442898,-208.27374191,0.000299,7]
[326706581,1715273442907,-208.27374191,0.000299,7]
[326706582,1715273442917,-208.27374191,0.000299,7]
[326706583,1715273442926,-208.27374191,0.000299,7]
[326706584,1715273442935,-208.27374191,0.000299,7]
[326706585,1715273442945,-208.27374191,0.000299,7]
[326706586,1715273442955,-208.27374191,0.000299,7]
[326706587,1715273442964,-208.27374191,0.000299,7]
[326706588,1715273442973,-208.27374191,0.000299,7]
[326706589,1715273442983,-208.27374191,0.000299,7]
[326706590,1715273442993,-208.27374191,0.000299,7]
[326706591,1715273443004,-208.27374191,0.000299,7]
[326706592,1715273443015,-208.27374191,0.000299,7]
[326706593,1715273443025,-208.27374191,0.000299,7]
[326706594,1715273443035,-208.77,0.000299,7]
[326706595,1715273443044,-167.26889828,0.000299,7]
[326706596,1715273443054,-167.26889828,0.000299,7]
[326706597,1715273443063,-167.26889828,0.000299,7]
[326706598,1715273443073,-167.26889828,0.000299,7]
[326706599,1715273443083,-167.26889828,0.000299,7]
[326706600,1715273443092,-167.76,0.000299,7]
[326706601,1715273443101,-256.72647919,0.000299,7]
[326706602,1715273443110,-256.72647919,0.000299,7]
[326706603,1715273443120,-256.72647919,0.000299,7]
[326706604,1715273443129,-256.72647919,0.000299,7]
[326706605,1715273443139,-256.72647919,0.000299,7]
[326706606,1715273443148,-256.72647919,0.000299,7]
[326706607,1715273443157,-256.72647919,0.000299,7]
[326706608,1715273443166,-256.72647919,0.000299,7]
[326706609,1715273443175,-256.72647919,0.000299,7]
[326706610,1715273443185,-256.72647919,0.000299,7]
[326706611,1715273443194,-256.72647919,0.000299,7]
[326706612,1715273443205,-256.72647919,0.000299,7]
[326706613,1715273443215,-256.72647919,0.000299,7]
[326706614,1715273443224,-256.72647919,0.000299,7]
[326706615,1715273443233,-256.72647919,0.000299,7]
[326706616,1715273443243,-256.72647919,0.000299,7]
[326706617,1715273443252,-256.72647919,0.000299,7]
[326706618,1715273443262,-256.72647919,0.000299,7]
[326706619,1715273443272,-256.72647919,0.000299,7]
[326706620,1715273443281,-257.22,0.000299,7]
[326706621,1715273443290,-151.0,0.0002999,2]
[326706622,1715273443300,-151.0,0.0002999,2]
[326706623,1715273443310,-151.0,0.0002999,2]
[326706624,1715273443319,-151.0,0.0002999,2]
[326706625,1715273443328,-151.0,0.0002999,2]
[326706626,1715273443338,-1018.6424211,0.00029998,2]
[326706627,1715273443348,-654.75526057,0.00029998,2]
[326706628,1715273443357,-167.8869119,0.0003,7]
[326706629,1715273443367,-1729880.14163658,0.0003,5]
[326706630,1715273443509,274.248,0.00011607,2]
[326706651,1715273443836,-24191.78903486,0.0003,5]
[326706652,1715273443848,-1056.35314666,0.0003,5]
[326706653,1715273443859,-16434.144942,0.0003,5]
[326706654,1715273443871,-650.96828781,0.0003,5]
[326706655,1715273443881,-1682.26095371,0.0003,5]
[326706656,1715273444444,-10835.27024589,0.0003,5]
[326706659,1715273444456,-405205.50257818,0.0003,5]
[326706661,1715273444468,-613.90750982,0.0003,5]
[326706673,1715273446488,-150.05995938,0.000129,2]
[326706674,1715273446498,-150.0,0.0002168,2]
[326706675,1715273446507,-1100.6712038,0.0003,5]
[326706676,1715273446518,-701.24921296,0.0003,5]
[326706677,1715273446529,-25141.90562707,0.0003,5]
[326706683,1715273458038,219.4488,0.00011579,2]
[326706684,1715273484049,179.73027073,0.00011607,2]
[326706685,1715274061826,-524.99904865,0.00011992,2]
[326706686,1715274061849,-155.0,0.00011993,2]
[326706687,1715274061872,-445.77946446,0.00011994,2]
[326706688,1715274061894,-528.15150967,0.00011995,2]
[326706689,1715274061918,-401.30921672,0.00011996,2]
[326706690,1715274061940,-150.0,0.00011999,2]
[326706691,1715274061962,-150.0,0.00011999,2]
[326706692,1715274061990,-8739.7607605,0.00012,2]
[326706693,1715274289114,1000.0,0.00022,30]
[326706694,1715274331729,309.93671531,0.00025,120]
[326706720,1715274348766,-540.24391711,0.00011995,2]
[326706721,1715274349007,-364.50047549,0.00011996,2]
[326706722,1715274349107,-1363.2556074,0.00012,2]
[326706729,1715274632847,-401.30921672,0.00011994,2]
[326706736,1715274632857,-114.04410594,0.00011997,2]
[326706740,1715274632868,-287.87646049,0.00011997,2]
[326706748,1715274633086,-1898.38196273,0.00011997,2]
[326706749,1715274633096,-401.43706223,0.00011997,2]
[326706750,1715274633106,-819.78583979,0.00011998,2]
[326706751,1715274633115,-538.95357639,0.00011999,2]
[326706752,1715274633125,-4947.57515884,0.00012,2]
[326706753,1715274633134,-547.73087551,0.00012,2]
[326706754,1715274633144,-298.53572696,0.00012,2]
[326706755,1715274633153,-715.6243807,0.000126,2]
[326706756,1715274633163,-1246.8456,0.000129,2]
[326706757,1715274633172,-1077.2188,0.000129,2]
[326706758,1715274633181,-1037.70360246,0.00014,2]
[326706759,1715274633191,-1042.02397427,0.00015,2]
[326706760,1715274633200,-37426.70421522,0.00015,2]
[326706761,1715274633211,-167.74860337,0.00015,2]
[326706762,1715274633220,-2000.0,0.00016,2]
[326706763,1715274633230,-436.44,0.00016,2]
[326706764,1715274633239,-499.99,0.00016,2]
[326706765,1715274633249,-2000.0,0.0001601,2]
[326706766,1715274633258,-2000.0,0.0001602,2]
[326706767,1715274633267,-2000.0,0.0001603,2]
[326706768,1715274633276,-2000.0,0.0001604,2]
[326706769,1715274633286,-2000.0,0.0001605,2]
[326706770,1715274633295,-2000.0,0.0001606,2]
[326706771,1715274633305,-674.44250104,0.0001607,2]
[326706790,1715274639342,-364.50047549,0.00011993,2]